Cogmind - Beta 13 @@@ ROGUE MODE // 2024.05.05 @ 21:29:26 Player: NikedNOGsing_in_can't Result: Destroyed by Shrapnel Trap Performance ------------- Evolutions (0) 0 Regions Visited (3) 600 Robots Destroyed (26) 130 Value Destroyed (419) 419 Prototype IDs (2) 40 Alien Tech Used (0) 0 Bonus (0) 0 TOTAL SCORE: 1189 Bonus ------- None Cogmind --------- Core Integrity 0/250 Matter 210/300 Energy 246/250 System Corruption 0% Temperature Cool (2) Movement Treading (320) Ox2 Location -10/Subcaves Parts ------- > --- POWER (1) -------- Ion Engine > --- PROPULSION (2) --- Light Treads Light Treads > --- UTILITY (2) ------ Huge Storage Unit Seismic Detector > --- WEAPON (2) ------- Light Assault Rifle Shotgun > --- INVENTORY (25) --- Wheel Small Storage Unit Improved Terrain Scanner Seismic Detector Hacking Suite Light Assault Rifle Light Assault Rifle Peak State ------------ > --- POWER ------------ Ion Engine > --- PROPULSION ------- Light Treads Light Treads > --- UTILITY ---------- Small Storage Unit Seismic Detector > --- WEAPON ----------- Light Assault Rifle Shotgun > --- INVENTORY -------- Wheel Improved Terrain Scanner Seismic Detector Hacking Suite Light Assault Rifle Light Assault Rifle [Rating: 9] Favorites ----------- Power Ion Engine Engine Ion Engine Propulsion Light Treads Treads Light Treads Utility Seismic Detector Device Seismic Detector Storage Huge Storage Unit Weapon Shotgun Ballistic Gun Shotgun Launcher Grenade Launcher Build | -11 -10 -10 -10 ------- Run | Yrd Mat Min Sub Slots Evolved . | . . . . Power . | . . . . Propulsion . | . . . . Utility . | . . . . Weapon . | . . . . Parts Attached 15 | 7 4 2 2 Power 1 | 1 . . . Engine 1 | 1 . . . Core . | . . . . Reactor . | . . . . Propulsion 2 | 2 . . . Treads 2 | 2 . . . Leg . | . . . . Wheel . | . . . . Hover . | . . . . Flight . | . . . . Utility 3 | 2 1 . . Device 1 | 1 . . . Storage 2 | 1 1 . . Processor . | . . . . Hackware . | . . . . Protection . | . . . . Artifact . | . . . . Weapon 9 | 2 3 2 2 Energy Gun . | . . . . Energy Cannon . | . . . . Ballistic Gun 6 | 2 2 1 1 Ballistic Cannon . | . . . . Launcher 3 | . 1 1 1 Special Weapon . | . . . . Impact Weapon . | . . . . Slashing Weapon . | . . . . Piercing Weapon . | . . . . Special Melee Weapon . | . . . . Unidentified Prototypes . | . . . . Parts Lost 1 | . . . 1 Power . | . . . . Propulsion . | . . . . Utility . | . . . . Weapon 1 | . . . 1 Highest Loss Streak 1 | . . . 1 To Critical Strikes . | . . . . Average Slot Usage (%) 100 | . 100 100 100 Engine 14 | . 14 14 14 Treads 28 | . 28 28 28 Device 14 | . 14 14 14 Storage 14 | . 14 14 14 Ballistic Gun 25 | . 27 22 27 Launcher 2 | . . 5 . Naked Turns . | . . . . Heaviest Build 92 | 13 90 92 92 Greatest Support 40 | 40 40 40 40 Greatest Overweight (x) 2 | . 2 2 2 Average Overweight (x) 1 | . . 2 2 Largest Inventory Capacity 25 | 8 25 25 25 Average Capacity 22 | 7 10 25 25 Most Carried 8 | 4 8 8 8 Average Carried 7 | 1 6 8 7 Final Capacity 25 | 8 25 25 25 Final Carried 8 | 4 8 8 7 Class Distribution -------------------- 100% | Mutant Dominant Class ---------------- Mutant | -10/Materials Mutant | -10/Mines Mutant | -10/Subcaves Resources | -11 -10 -10 -10 ----------- Run | Yrd Mat Min Sub Matter Collected 524 | 251 191 42 40 Remotely . | . . . . Salvage Created 639 | 103 467 16 53 Parts 57 | 12 37 2 6 Haulers Intercepted 1 | . 1 . . Recyclers Shooed 1 | . 1 . . Parts Field Recycled . | . . . . Retrieved Matter . | . . . . Parts Self-Destructed 6 | . . . 6 Prevented . | . . . . Kills | -11 -10 -10 -10 ------- Run | Yrd Mat Min Sub Combat Hostiles Destroyed 15 | . 9 3 3 Guns 8 | . 7 . 1 AOE 7 | . 2 3 2 Classes Destroyed 9 | 2 6 . 1 Worker 2 | . 2 . . Tunneler 2 | 2 . . . Hauler 1 | . 1 . . Recycler 3 | 1 2 . . Operator 1 | . 1 . . Watcher 2 | . 2 . . Swarmer 9 | . 6 3 . Grunt 3 | . 3 . . Subdweller 3 | . . . 3 Best Kill Streak 6 | 2 6 3 2 Combat Bots Only 3 | . 3 3 2 Max Kills in Single Turn 2 | 1 2 2 1 Gunslinging . | . . . . Exploded 2 | . 2 2 1 Melee . | . . . . Uniques/NPCs Destroyed . | . . . . Combat | -11 -10 -10 -10 -------- Run | Yrd Mat Min Sub Hostile Shots Fired 81 | . 67 5 9 Missed 25 | . 20 3 2 Damage Taken 717 | . 422 28 267 Core 268 | . 101 5 162 Absorbed by Shields . | . . . . Core Remaining (%) 100 | 100 . . . Volleys Fired 64 | 13 40 4 7 Largest 2 | 2 2 2 2 Hottest 53 | 40 53 43 43 Shots Fired 116 | 26 76 5 9 Gun 107 | 26 75 2 4 Cannon . | . . . . Launcher 9 | . 1 3 5 Special . | . . . . Kinetic 107 | 26 75 2 4 Thermal . | . . . . Explosive 9 | . 1 3 5 Electromagnetic . | . . . . Robot Hit Streak 18 | 8 10 7 18 Robot Miss Streak 4 | 2 4 . . Penetration Max . | . . . . Secondary Targets . | . . . . Shots Hit Robots 78 | 19 46 4 9 Core Hits 43 | 7 27 3 6 Critical Kills . | . . . . Critical Parts Destroyed . | . . . . Critical Strikes . | . . . . Melee Attacks . | . . . . Impact . | . . . . Slashing . | . . . . Piercing . | . . . . Sneak Attacks . | . . . . Combat Hostiles . | . . . . Follow-up Attacks . | . . . . Damage Inflicted 1396 | 155 635 174 432 Guns 716 | 155 476 28 57 Cannons . | . . . . Explosions 680 | . 159 146 375 Melee . | . . . . Ramming . | . . . . Kinetic 716 | 155 476 28 57 Thermal . | . . . . Explosive 680 | . 159 146 375 Electromagnetic . | . . . . Impact . | . . . . Slashing . | . . . . Piercing . | . . . . Highest Corruption . | . . . . Average Corruption . | . . . . Corruption Purged . | . . . . Corruption Blocked . | . . . . Overload Shots . | . . . . Overflow Damage . | . . . . Projectiles . | . . . . Explosions . | . . . . Melee . | . . . . Knockbacks . | . . . . Impact . | . . . . Kinetic . | . . . . Secondary . | . . . . Self-Inflicted Damage 10 | . . 10 . Shots 1 | . . 1 . Rammed . | . . . . Targets Rammed . | . . . . Kicked . | . . . . Crushed . | . . . . Highest Temperature 19 | . 19 2 . Average Temperature 3 | . 3 1 . Received Heat Transfer 144 | . 81 . 63 Siege Activations . | . . . . Robots Corrupted . | . . . . Combat Hostiles . | . . . . Parts Fried . | . . . . Impact Corruptions . | . . . . Robots Melted . | . . . . Combat Hostiles . | . . . . Parts Melted . | . . . . Heat Transferred . | . . . . Parts Sabotaged . | . . . . Parts Stolen . | . . . . Parts Stripped . | . . . . Power Chain Reactions . | . . . . Alert | -11 -10 -10 -10 ------- Run | Yrd Mat Min Sub Peak Influence 241 | 15 241 97 . Initial 69 | . 9 69 . Average 47 | 7 134 20 . Maximum Alert Level 1 | . 1 . . Low Security (%) 98 | 100 91 100 . Level 1 1 | . 8 . . Level 2 . | . . . . Level 3 . | . . . . Level 4 . | . . . . Level 5 . | . . . . High Security . | . . . . Max Security . | . . . . Squads Dispatched . | . . . . Investigation . | . . . . Extermination . | . . . . Reinforcement . | . . . . Assault . | . . . . Garrison . | . . . . Intercept . | . . . . Searches Triggered . | . . . . Construction Impeded . | . . . . Haulers Reinforced . | . . . . Active Scanning Responses . | . . . . Cargo Convoy Interrupts . | . . . . Stealth | -11 -10 -10 -10 --------- Run | Yrd Mat Min Sub Distress Signals 2 | . 2 . . Communications Jammed . | . . . . Distress Signals . | . . . . Times Spotted 23 | . 17 3 3 Peak Tracking Total 5 | . 5 3 2 Tactical Retreats 1 | . 1 . . Traps | -11 -10 -10 -10 ------- Run | Yrd Mat Min Sub Traps Triggered 1 | . . . 1 Indirectly . | . . . . Trap Hack Attempts . | . . . . Triggered . | . . . . Disarmed . | . . . . Reprogrammed . | . . . . Reused . | . . . . Traps Extracted . | . . . . Installed . | . . . . Triggered . | . . . . Machines | -11 -10 -10 -10 ---------- Run | Yrd Mat Min Sub Machines Disabled 1 | . 1 . . Max in Single Turn 1 | . 1 . . Machines Repaired . | . . . . Machines Dismantled . | . . . . Machines Sabotaged . | . . . . Overloaded Fab Kills . | . . . . Hacking | -11 -10 -10 -10 --------- Run | Yrd Mat Min Sub Machines Accessed 4 | . 4 . . Terminals 3 | . 3 . . Fabricators . | . . . . Repair Stations . | . . . . Recycling Units 1 | . 1 . . Scanalyzers . | . . . . Garrison Access . | . . . . Total Hacks 7 | . 7 . . Successful 5 | . 5 . . Failed 2 | . 2 . . Catastrophic . | . . . . Database Lockouts . | . . . . Manual . | . . . . Terminals 6 | . 6 . . Fabricators . | . . . . Repair Stations . | . . . . Recycling Units 1 | . 1 . . Scanalyzers . | . . . . Garrison Access . | . . . . Terminal Hacks 4 | . 4 . . Robot Analysis 1 | . 1 . . Prototype ID Bank 1 | . 1 . . Level Access Points 1 | . 1 . . Locate Traps 1 | . 1 . . Fabricator Hacks . | . . . . Repair Station Hacks . | . . . . Recycling Unit Hacks 1 | . 1 . . Retrieve Components 1 | . 1 . . Scanalyzer . | . . . . Garrison Access Hacks . | . . . . Unauthorized Hacks . | . . . . Terminals . | . . . . Fabricators . | . . . . Repair Stations . | . . . . Recycling Units . | . . . . Scanalyzers . | . . . . Garrison Access . | . . . . Data Cores Recovered 1 | . 1 . . Used 1 | . 1 . . Hacking Detections 2 | . 2 . . Full Trace Events 1 | . 1 . . Feedback Events . | . . . . Feedback Blocked . | . . . . Robot Schematics Acquired . | . . . . Robots Built . | . . . . Authchips . | . . . . Time . | . . . . Total Robot Build Rating . | . . . . Part Schematics Acquired . | . . . . Parts Built . | . . . . Authchips . | . . . . Time . | . . . . Total Part Build Rating . | . . . . Parts Repaired . | . . . . Time . | . . . . Parts Recycled . | . . . . Recycled Matter . | . . . . Retrieved Matter . | . . . . Retrieved Components 2 | . 2 . . Parts Scanalyzed . | . . . . Part Schematics Acquired . | . . . . Parts Damaged . | . . . . Bothacking | -11 -10 -10 -10 ------------ Run | Yrd Mat Min Sub Used RIF Installer . | . . . . Robots Hacked . | . . . . Non-combat . | . . . . Combat . | . . . . Robot Hacks Applied . | . . . . Relay Couplers Released . | . . . . Fabnet Peak Effective % . | . . . . Robots Rewired . | . . . . Allies Hacked . | . . . . Hacks Repelled . | . . . . Allies | -11 -10 -10 -10 -------- Run | Yrd Mat Min Sub Total Allies . | . . . . Largest Group . | . . . . Highest-Rated Group . | . . . . Highest-Rated Ally . | . . . . Total Orders . | . . . . Ally Attacks . | . . . . Total Damage . | . . . . Kills . | . . . . Allies Corrupted . | . . . . Allies Melted . | . . . . Intel | -11 -10 -10 -10 ------- Run | Yrd Mat Min Sub Robot Analysis Total 1 | . 1 . . Derelict Logs Recovered 3 | . . 1 2 Drone Launches . | . . . . Drone Recoveries . | . . . . Exploration | -11 -10 -10 -10 ------------- Run | Yrd Mat Min Sub Turns Passed 4426 | 172 607 1731 1916 Spaces Moved 1460 | 79 262 538 581 Core 2 | 2 . . . Treads 1458 | 77 262 538 581 Legs . | . . . . Wheels . | . . . . Hover . | . . . . Flight . | . . . . Fastest Speed 50 | 50 160 320 320 Average Speed 286 | 157 180 320 320 Slowest Speed 320 | 160 320 320 320 Overloaded Moves . | . . . . Propulsion Burnouts . | . . . . Robots Hopped . | . . . . Cave-ins Triggered . | . . . . Exploration Rate (%) 46 | 4 61 90 32 Regions Visited 3 Branch Regions 2 Pre-discovered Areas 1 | . . 1 . Known Exits Taken . | . . . . Unknown Exits Taken 3 | 1 1 1 . Scrap Searched 1 | . . 1 . Spaces Dug . | . . . . Terrain Destroyed 56 | . 7 27 22 Melee . | . . . . Projectile . | . . . . AOE 56 | . 7 27 22 Terrain Rammed . | . . . . Walls Destroyed . | . . . . Machines Disabled . | . . . . Actions | -11 -10 -10 -10 --------- Run | Yrd Mat Min Sub Total 1607 | 103 330 543 631 Wait 65 | 1 23 . 41 Move 1457 | 78 261 537 581 Hop . | . . . . Pick Up 6 | 4 2 . . Fast Attach 7 | 7 . . . Attach 1 | . . . 1 Detach . | . . . . Swap 7 | . 4 2 1 Drop . | . . . . Fire 64 | 13 40 4 7 Melee . | . . . . Ram . | . . . . Kick . | . . . . Crush . | . . . . Escape Stasis . | . . . . Rewire . | . . . . Trap . | . . . . Miscellaneous . | . . . . Route ------- -11/Scrapyard -10/Materials (discovered 5 exits: *Mat x3 / [*Min x2]) -10/Mines (discovered 2 exits: *Mat / [*Sub]) -10/Subcaves History --------- Turn | Location | Event 7 | -11/Scrapyard | Discovered new exit (range 15) 173 | -11/Scrapyard | Entered Materials 324 | -10/Materials | Build established: Mutant 357 | -10/Materials | Discovered new exit (range 16) 496 | -10/Materials | Identified exit to Materials 620 | -10/Materials | Discovered new exit (range 16) 722 | -10/Materials | Discovered new exit (range 13) 780 | -10/Materials | Entered Mines 812 | -10/Mines | Learned location of Storage (-8) 1078 | -10/Mines | Discovered exit to Materials (range 8) 2495 | -10/Mines | Discovered new exit (range 5) 2511 | -10/Mines | Entered Subcaves 2540 | -10/Subcaves | Learned 8 Materials zone layouts 2633 | -10/Subcaves | Core integrity fell below 50% 2778 | -10/Subcaves | Learned Materials stockpile data 3721 | -10/Subcaves | A swath of the cavern ceiling suddenly collapsed 4427 | -10/Subcaves | Destroyed by Shrapnel Trap Last Messages --------------- 02632_ 9P-EXV(R) destroyed. 02634_ Grenade Launcher destroyed. 02637_ Subatomizers dissect the Sub. Optics, destroying it. 02642_ QV-3Z6(R) affixes Scrap Shield Fragment to Scrap Shield. 02663_ QV-3Z6(R) destroyed. 02673_ Subatomizers dissect the Sub. Monowheel. 02720_ Acquired 20 matter. 02728_ The unstable cave ceiling collapses. 02731_ Subatomizers dissect the Sub. Monowheel, destroying it. 02778_ Acquired derelict log, extracted data. Data stored: Materials stockpile data. A swath of the cavern ceiling suddenly collapses. 04427_ Triggered Shrapnel Trap. 04427_ An expanding cloud of shrapnel blasts out in all directions. Map ----- +----------------------------------------------------+ | ?????????????????????????????????????????????????? | | ?????????????????????????????????????????????????? | | ?????????????????????????????????????????????????? | | ?????????????????????????????????????????????????? | | ?????????????????????????????????????????????????? | | ?????????????????????????????????????????????????? | | ?????????????????????????????????????????????????? | | ?????????????????????????????????????????????????? | | ?????????????????????????????????????????????????? | | ?????????????????????????????????????????????????? | | ?????????????????????????????????????????????????? | | ?????????????????????????????????????????????????? | | ?????????????????????????????????????????????????? | | ?????????????????????????????????????????????????? | | ?????????????????????????????????????????????????? | | ?????????????????????????????????????????????????? | | ?????????????????????????????????????????????????? | | ?????????????????????????????????????????????????? | | ?????????????????????????????????????????????????? | | ?????????????????????????????????????????????????? | | ?????????????????????######????#######???????????? | | ???????????????????### ###### ##??????????? | | ???????????????????# #??????????? | | ???????????????????# #???????#### | | ???????????????????# ##?????? | | ???????????????????# @ #?????# | | ???????????????????# ####### #????# | | ???????????????????# ##?????## ####?# | | ???????????????????# ##??????# ### | | ???????????????????# #?????## ^ | | ???????????????????## ##????## | | ??###########?###???###?????# ## #? | | ??# ## # ### ##??????????#### ## #?? | | ?## ##?####???????## ##? | | ?# ### ##???????## ## | | ## # # # # # #####??### | | # ########### # #### ### | | # ##??????## #?### | | # #??????# ## #???## | | #??????### #### #????# | | ##????????# ## ######????###### | | #####????????## #?????????????# | | #???????????## ##???#####????## ^ | | ????????????# ## ## ##????# #?### | | #??########## # ##### #?????# #?# | | #??# ### # ##???## #????# #??## | | #### ### # #????## ##????# #????## | | ## ## ## #?????###????## #?##### | | # ###############^ ### | | ## # ### ## ## | +----------------------------------------------------+ Best States ------------- Heat Dissipation 25 Energy Generation 10 Energy Capacity 250 Matter Stores 300 Matter Capacity 300 Sight Range 16 Terrain Scan Density 10 Evasion (%) 40 Recoil Reduction 2 Item Schematics ----------------- None Robot Schematics ------------------ None Fabricated ------------ Nothing Alien Tech Used ----------------- None Achievements -------------- None Challenges ------------ None Game ------ Seed AdvancedSwarmWell Manual? 0 Play Time 00:12:10 Cumulative 74.8 hours Start 2024.05.05 @ 21:18:02 End 2024.05.05 @ 21:29:26 Sessions 1 Manual Loads 0 Difficulty Rogue Special Mode None Game No. 39 Rogue 39 Adventurer 0 Explorer 0 Win Type - Total 0 Types 0/0/0/0/0/0/0/0/0 Lore% 42 Gallery% 55 Achievement% 42 Wizard Run 0 Options --------- Layout 1 ASCII 0 Keyboard 0 Movement Mouse Keybinds 0 Fullscreen 1 Font 24/Smallcaps Map View 50x35 Zoom Use 0% Tactical HUD 1 Map Filters NONE Filters NONE Steam 1 RUN: 8dc2302d-4625-49fa-94d5-ba0b1293a9ff